fUSD/lending_fUSD_20250225
["ID","MTS","AMOUNT","RATE_DAILY","PERIOD"]
[354380198,1740468664218,-2665.4107502,0.00036975,2]
[354380200,1740468664229,-300.0,0.00036999,10]
[354380202,1740468664239,-127033.21045178,0.00037,7]
[354380204,1740468664249,-153.225358,0.00037,7]
[354380206,1740468664259,-151.0,0.00037,7]
[354380208,1740468664272,-151.0,0.00037,7]
[354380210,1740468664282,-151.0,0.00037,7]
[354380212,1740468664292,-151.0,0.00037,7]
[354380214,1740468664302,-151.0,0.00037,7]
[354380216,1740468664312,-151.0,0.00037,7]
[354380218,1740468664323,-151.0,0.00037,7]
[354380220,1740468664333,-151.0,0.00037,7]
[354380222,1740468664343,-151.0,0.00037,7]
[354380223,1740468664353,-151.0,0.00037,7]
[354380224,1740468664363,-243.03148,0.00037,7]
[354380225,1740468664373,-7951.0,0.00037,117]
[354380226,1740468664383,-153.136059,0.00037,7]
[354380227,1740468664394,-151.0,0.00037,7]
[354380228,1740468664404,-151.0,0.00037,7]
[354380229,1740468664414,-151.0,0.00037,7]
[354380230,1740468664425,-151.0,0.00037,7]
[354380232,1740468664434,-151.0,0.00037,7]
[354380234,1740468664444,-151.0,0.00037,7]
[354380235,1740468664454,-151.0,0.00037,7]
[354380236,1740468664464,-151.0,0.00037,7]
[354380237,1740468664473,-234.40734,0.00037,7]
[354380239,1740468664483,-151.0,0.00037,7]
[354380241,1740468664493,-311.676151,0.00037,7]
[354380243,1740468664503,-151.0,0.00037,7]
[354380245,1740468664513,-311.676151,0.00037,7]
[354380247,1740468664525,-151.0,0.00037,7]
[354380249,1740468664535,-151.0,0.00037,7]
[354380251,1740468664544,-151.0,0.00037,7]
[354380253,1740468664554,-151.0,0.00037,7]
[354380255,1740468664564,-151.0,0.00037,7]
[354380257,1740468664574,-151.0,0.00037,7]
[354380259,1740468664584,-270.567967,0.00037,7]
[354380261,1740468664594,-270.567967,0.00037,7]
[354380263,1740468664604,-171.971388,0.00037,7]
[354380265,1740468664614,-171.971388,0.00037,7]
[354380267,1740468664625,-10000.0,0.00037,7]
[354380269,1740468664635,-151.0,0.00037,7]
[354380271,1740468664646,-151.0,0.00037,7]
[354380273,1740468664656,-178.6316,0.00037,7]
[354380275,1740468664666,-178.6316,0.00037,7]
[354380277,1740468664677,-281.877773,0.00037,7]
[354380279,1740468664687,-281.877773,0.00037,7]
[354380281,1740468664696,-151.0,0.00037,7]
[354380283,1740468664707,-151.0,0.00037,7]
[354380285,1740468664717,-150.0,0.00037091,7]
[354380287,1740468664727,-150.0,0.00037143,7]
[354380289,1740468664736,-365.03,0.00037185,2]
[354380291,1740468664746,-10302.35858165,0.0003722,2]
[354380293,1740468664755,-500.0,0.0003726,60]
[354380294,1740468664768,-500.0,0.0003726,60]
[354380295,1740468664777,-500.0,0.0003726,60]
[354380296,1740468664787,-20000.000001,0.00037293,60]
[354380297,1740468664796,-1634.02,0.000374,30]
[354380298,1740468664806,-150.0,0.00037429,7]
[354380299,1740468664816,-150.0,0.00037455,7]
[354380300,1740468664825,-862.52543216,0.00037486,7]
[354380301,1740468664835,-2000.0,0.000375,2]
[354380302,1740468664844,-2000.0,0.000375,2]
[354380303,1740468664854,-2000.0,0.000375,2]
[354380304,1740468664863,-150.0,0.00037534,2]
[354380305,1740468664873,-150.0,0.000376,7]
[354380306,1740468664882,-150.0,0.00037714,7]
[354380307,1740468664892,-1500.0,0.00037777,5]
[354380308,1740468664901,-1634.03,0.000378,30]
[354380309,1740468664911,-500.0,0.00037808,60]
[354380311,1740468664920,-500.0,0.00037808,60]
[354380312,1740468664930,-150.0,0.00037818,7]
[354380314,1740468664939,-823.6136839,0.00037974,2]
[354380317,1740468664949,-283.2631626,0.00037974,2]
[354380318,1740468664959,-300.0,0.00037999,10]
[354380321,1740468664968,-500000.0,0.00038,30]
[354380322,1740468664978,-1144.99,0.00038,14]
[354380324,1740468664987,-1060.0,0.00038,5]
[354380326,1740468664997,-151.0,0.00038,7]
[354380328,1740468665007,-151.0,0.00038,7]
[354380330,1740468665019,-151.0,0.00038,7]
[354380332,1740468665028,-297.513655,0.00038,7]
[354380334,1740468665038,-151.0,0.00038,7]
[354380336,1740468665047,-151.0,0.00038,7]
[354380338,1740468665057,-151.0,0.00038,7]
[354380340,1740468665067,-151.0,0.00038,7]
[354380342,1740468665076,-151.0,0.00038,7]
[354380343,1740468665086,-151.790935,0.00038,7]
[354380345,1740468665098,-151.710081,0.00038,7]
[354380347,1740468665107,-151.0,0.00038,7]
[354380349,1740468665117,-151.0,0.00038,7]
[354380351,1740468665126,-151.0,0.00038,7]
[354380353,1740468665137,-151.0,0.00038,7]
[354380355,1740468665146,-151.0,0.00038,7]
[354380357,1740468665155,-151.0,0.00038,7]
[354380359,1740468665164,-151.0,0.00038,7]
[354380370,1740468665294,-151.0,0.00038,7]
[354380371,1740468665304,-151.0,0.00038,7]
[354380372,1740468665313,-247.332,0.00038,7]
[354380373,1740468665322,-151.0,0.00038,7]
[354380374,1740468665332,-166.493681,0.00038,7]
[354380375,1740468665341,-151.0,0.00038,7]
[354380376,1740468665350,-151.0,0.00038,7]
[354380378,1740468665359,-151.0,0.00038,7]
[354380380,1740468665369,-151.0,0.00038,7]
[354380382,1740468665378,-151.0,0.00038,7]
[354380384,1740468665387,-151.0,0.00038,7]
[354380386,1740468665396,-311.676151,0.00038,7]
[354380388,1740468665406,-151.0,0.00038,7]
[354380390,1740468665416,-311.676151,0.00038,7]
[354380392,1740468665425,-151.0,0.00038,7]
[354380393,1740468665435,-311.676151,0.00038,7]
[354380395,1740468665444,-311.676151,0.00038,7]
[354380397,1740468665454,-151.0,0.00038,7]
[354380399,1740468665464,-151.0,0.00038,7]
[354380401,1740468665473,-151.0,0.00038,7]
[354380402,1740468665484,-151.0,0.00038,7]
[354380404,1740468665495,-151.0,0.00038,7]
[354380406,1740468665505,-151.0,0.00038,7]
[354380407,1740468665514,-151.0,0.00038,7]
[354380409,1740468665527,-246.62844,0.00038,7]
[354380411,1740468665536,-151.0,0.00038,7]
[354380412,1740468665546,-151.0,0.00038,7]
[354380413,1740468665556,-270.567967,0.00038,7]
[354380414,1740468665566,-270.567967,0.00038,7]
[354380415,1740468665576,-270.567967,0.00038,7]
[354380416,1740468665585,-270.567967,0.00038,7]
[354380417,1740468665595,-500.0,0.00038,120]
[354380418,1740468665605,-2000.0,0.00038,120]
[354380419,1740468665614,-171.971388,0.00038,7]
[354380421,1740468665624,-171.971388,0.00038,7]
[354380422,1740468665634,-500.0,0.00038,120]
[354380424,1740468665644,-500.0,0.00038,120]
[354380426,1740468665654,-171.971388,0.00038,7]
[354380427,1740468665663,-171.971388,0.00038,7]
[354380428,1740468665673,-200.0,0.00038,120]
[354380430,1740468665682,-10000.0,0.00038,7]
[354380432,1740468665691,-10000.0,0.00038,7]
[354380433,1740468665700,-150.0,0.00038,7]
[354380435,1740468665710,-151.0,0.00038,7]
[354380437,1740468665720,-152.047622,0.00038,7]
[354380439,1740468665730,-151.0,0.00038,7]
[354380441,1740468665739,-151.0,0.00038,7]
[354380443,1740468665748,-178.6316,0.00038,7]
[354380445,1740468665758,-178.6316,0.00038,7]
[354380447,1740468665769,-178.6316,0.00038,7]
[354380449,1740468665778,-178.6316,0.00038,7]
[354380451,1740468665787,-281.877773,0.00038,7]
[354380453,1740468665797,-281.877773,0.00038,7]
[354380455,1740468665807,-281.877773,0.00038,7]
[354380457,1740468665816,-281.877773,0.00038,7]
[354380459,1740468665826,-206.868886,0.00038,7]
[354380461,1740468665836,-151.0,0.00038,7]
[354380463,1740468665845,-151.0,0.00038,7]
[354380465,1740468665855,-151.0,0.00038,7]
[354380467,1740468665865,-151.0,0.00038,7]
[354380469,1740468665874,-739.392273,0.00038,7]
[354380471,1740468665884,-739.392273,0.00038,7]
[354380473,1740468665894,-151.0,0.00038,7]
[354380475,1740468665904,-151.0,0.00038,7]
[354380477,1740468665914,-151.0,0.00038,7]
[354380479,1740468665925,-151.0,0.00038,7]
[354380481,1740468665934,-151.0,0.00038,7]
[354380483,1740468665944,-839.190663,0.00038,7]
[354380485,1740468665953,-839.190663,0.00038,7]
[354380487,1740468665963,-151.0,0.00038,7]
[354380489,1740468665973,-440.51,0.00038082,2]
[354380491,1740468665983,-150.0,0.00038182,7]
[354380493,1740468665993,-150.0,0.00038286,7]
[354380495,1740468666002,-434.73672731,0.00038356,7]
[354380497,1740468666012,-500.0,0.00038356,60]
[354380499,1740468666025,-150.41,0.00038356,2]
[354380501,1740468666034,-1634.03,0.000384,30]
[354380503,1740468666044,-150.0,0.000384,7]
[354380505,1740468666054,-1144.99,0.000385,14]
[354380507,1740468666066,-150.0,0.00038545,7]
[354380509,1740468666075,-150.0,0.00038571,7]
[354380511,1740468666085,-150.0,0.0003873,15]
[354380513,1740468666097,-300.0,0.00038799,10]
[354380515,1740468666109,-1144.99,0.000388,14]
[354380517,1740468666119,-186900.89465953,0.000388,30]
[354380519,1740468666128,-3724.26,0.000388,30]
[354380521,1740468666138,-10759.49141025,0.000388,30]
[354380523,1740468666148,-1039.8393631,0.000388,30]
[354380525,1740468666157,-44867.6313266,0.000388,120]
[354380527,1740468666167,-150.0,0.00038857,7]
[354380529,1740468666176,-862.52543216,0.00038866,8]
[354380531,1740468666186,-500.0,0.00038904,60]
[354380533,1740468666197,-500.0,0.00038904,60]
[354380535,1740468666206,-8747.2,0.00038909,117]
[354380537,1740468666216,-150.0,0.00038909,7]
[354380539,1740468666226,-152.15,0.00038936,2]
[354380541,1740468666236,-300.0,0.0003897,2]
[354380542,1740468666245,-400.0,0.0003897,2]
[354380544,1740468666255,-218.2041207,0.00038973,2]
[354380546,1740468666265,-2284.5083153,0.00038973,2]
[354380547,1740468666277,-850.9725209,0.00038973,2]
[354380548,1740468666286,-249.9380847,0.00038973,2]
[354380549,1740468666296,-1127929.64525803,0.00039,2]
[354380550,1740468666306,-2020.49438321,0.00039,2]
[354380551,1740468666316,-151.0,0.00039,14]
[354380552,1740468666326,-169.004006,0.00039,14]
[354380553,1740468666336,-205.658775,0.00039,14]
[354380554,1740468666345,-291.359663,0.00039,14]
[354380555,1740468666355,-151.0,0.00039,14]
[354380556,1740468666367,-151.0,0.00039,14]
[354380557,1740468666376,-151.0,0.00039,14]
[354380558,1740468666386,-294.441969,0.00039,14]
[354380559,1740468666395,-150.0,0.00039,2]
[354380560,1740468666405,-1747.24731364,0.00039,2]
[354380561,1740468666415,-151.0,0.00039,14]
[354380562,1740468666424,-151.0,0.00039,14]
[354380563,1740468666434,-151.0,0.00039,14]
[354380564,1740468666443,-280.0,0.00039,14]
[354380565,1740468666452,-151.0,0.00039,14]
[354380566,1740468666462,-151.0,0.00039,14]
[354380567,1740468666471,-151.0,0.00039,14]
[354380568,1740468666481,-151.0,0.00039,14]
[354380569,1740468666491,-311.676151,0.00039,14]
[354380570,1740468666500,-151.0,0.00039,14]
[354380571,1740468666510,-311.676151,0.00039,14]
[354380572,1740468666522,-217.77368,0.00039,14]
[354380573,1740468666532,-311.676151,0.00039,14]
[354380574,1740468666542,-311.676151,0.00039,14]
[354380575,1740468666552,-151.0,0.00039,14]
[354380576,1740468666562,-151.0,0.00039,14]
[354380577,1740468666572,-151.0,0.00039,14]
[354380578,1740468666582,-151.0,0.00039,14]
[354380579,1740468666592,-151.0,0.00039,14]
[354380580,1740468666601,-251.746244,0.00039,14]
[354380581,1740468666611,-151.0,0.00039,14]
[354380582,1740468666621,-153.03982,0.00039,14]
[354380583,1740468666630,-270.567967,0.00039,14]
[354380584,1740468666639,-270.567967,0.00039,14]
[354380585,1740468666649,-270.567967,0.00039,14]
[354380586,1740468666659,-270.567967,0.00039,14]
[354380587,1740468666668,-171.971388,0.00039,14]
[354380589,1740468666678,-171.971388,0.00039,14]
[354380591,1740468666687,-171.971388,0.00039,14]
[354380593,1740468666696,-171.971388,0.00039,14]
[354380595,1740468666705,-10000.0,0.00039,14]
[354380597,1740468666715,-10000.0,0.00039,14]
[354380598,1740468666724,-10000.0,0.00039,14]
[354380599,1740468666734,-151.0,0.00039,14]
[354380600,1740468666743,-151.0,0.00039,14]
[354380601,1740468666752,-178.6316,0.00039,14]
[354380603,1740468666762,-178.6316,0.00039,14]
[354380605,1740468666775,-178.6316,0.00039,14]
[354380607,1740468666784,-178.6316,0.00039,14]
[354380609,1740468666794,-281.877773,0.00039,14]
[354380611,1740468666804,-281.877773,0.00039,14]
[354380613,1740468666814,-281.877773,0.00039,14]
[354380615,1740468666824,-281.877773,0.00039,14]
[354380617,1740468666834,-151.0,0.00039,14]
[354380619,1740468666843,-151.0,0.00039,14]
[354380621,1740468666852,-151.0,0.00039,14]
[354380623,1740468666862,-159.0,0.00039,39]
[354380625,1740468666871,-739.392273,0.00039,14]
[354380627,1740468666881,-739.392273,0.00039,14]
[354380629,1740468666891,-151.0,0.00039,14]
[354380630,1740468666900,-285629.35400548,0.00039,120]
[354380632,1740468666910,-151.0,0.00039,14]
[354380634,1740468666919,-151.0,0.00039,14]
[354380636,1740468666929,-255.392402,0.00039,14]
[354380638,1740468666939,-839.190663,0.00039,14]
[354380640,1740468666948,-839.190663,0.00039,14]
[354380642,1740468666958,-151.0,0.00039,14]
[354380644,1740468666967,-155.43,0.00039036,120]
[354380646,1740468666977,-877.23,0.00039041,2]
[354380648,1740468666986,-440.46,0.00039041,2]
[354380650,1740468666995,-150.0,0.00039143,7]
[354380652,1740468667004,-150.0,0.000392,7]
[354380660,1740468667117,-150.0,0.00039273,7]
[354380662,1740468667138,-1634.03,0.000393,30]
[354380663,1740468667148,-152.0,0.00039424,4]
[354380665,1740468667158,-150.0,0.00039429,7]
[354380666,1740468667168,-365.03,0.00039449,2]
[354380668,1740468667181,-326.83267217,0.00039452,60]
[354380669,1740468667190,-334314.0,0.000395,30]
[354380671,1740468667201,-1144.99,0.000395,14]
[354380673,1740468667210,-87798.7725121,0.000395,2]
[354380674,1740468667219,-500.0,0.00039514,120]
[354380676,1740468667229,-150.0,0.00039531,30]
[354380677,1740468667238,-13575.68631544,0.00039531,30]
[354380679,1740468667247,-500.0,0.000396,120]
[354380680,1740468667258,-500.0,0.000396,120]
[354380682,1740468667270,-200.0,0.000396,120]
[354380684,1740468667279,-150.0,0.00039636,7]
[354380685,1740468667288,-150.0,0.00039714,7]
[354380687,1740468667298,-150.0,0.0003977,20]
[354380689,1740468667307,-2000.0,0.000398,3]
[354380690,1740468667317,-203.9,0.000398,25]
[354380692,1740468667326,-2000.0,0.000398,3]
[354380693,1740468667335,-150.0,0.000398,25]
[354380694,1740468667345,-2000.0,0.000398,3]
[354380695,1740468667354,-300.0,0.0003987,2]
[354380696,1740468667364,-400.0,0.0003987,2]
[354380697,1740468667374,-2346.32284264,0.00039898,54]
[354380699,1740468667384,-419.05524433,0.000399,2]
[354380701,1740468667394,-300.0,0.0003997,2]
[354380703,1740468667404,-300.0,0.0003997,2]
[354380705,1740468667413,-400.0,0.0003997,2]
[354380707,1740468667423,-400.0,0.0003997,2]
[354380709,1740468667435,-62249.34284423,0.00039999,5]
[354380711,1740468667447,-196.14274466,0.00039999,7]
[354380713,1740468667457,-151.0,0.00039999,14]
[354380715,1740468667466,-151.0,0.00039999,14]
[354380717,1740468667476,-151.0,0.00039999,14]
[354380719,1740468667486,-311.676151,0.00039999,14]
[354380721,1740468667497,-311.676142,0.00039999,14]
[354380723,1740468667507,-151.0,0.00039999,14]
[354380725,1740468667522,-151.0,0.00039999,14]
[354380727,1740468667533,-270.567967,0.00039999,14]
[354380729,1740468667543,-270.567963,0.00039999,14]
[354380731,1740468667554,-171.971388,0.00039999,14]
[354380733,1740468667563,-171.971388,0.00039999,14]
[354380735,1740468667573,-10000.0,0.00039999,14]
[354380737,1740468667583,-10000.0,0.00039999,14]
[354380739,1740468667593,-151.0,0.00039999,14]
[354380741,1740468667602,-178.6316,0.00039999,14]
[354380743,1740468667611,-178.631608,0.00039999,14]
[354380745,1740468667623,-281.877773,0.00039999,14]
[354380747,1740468667633,-281.877765,0.00039999,14]
[354380748,1740468667642,-151.0,0.00039999,14]
[354380749,1740468667652,-151.0,0.00039999,14]
[354380750,1740468667662,-739.392273,0.00039999,14]
[354380751,1740468667671,-739.392273,0.00039999,14]
[354380752,1740468667681,-151.0,0.00039999,14]
[354380753,1740468667691,-151.0,0.00039999,14]
[354380754,1740468667700,-151.0,0.00039999,14]
[354380755,1740468667710,-839.190663,0.00039999,14]
[354380756,1740468667719,-839.190663,0.00039999,14]
[354380757,1740468667728,-173.3592571,0.0004,7]
[354380758,1740468667737,-157.0700453,0.0004,7]
[354380759,1740468667747,-1985.90109208,0.0004,120]
[354380760,1740468667756,-61471.60496868,0.0004,30]
[354380761,1740468667765,-5000.0,0.0004,30]
[354380762,1740468667776,-3836.40555878,0.0004,120]
[354380763,1740468667785,-40925.06690186,0.0004,120]
[354380764,1740468667794,-1060.0,0.0004,5]
[354380765,1740468667804,-1510.93315101,0.0004,4]
[354380766,1740468667813,-1110.35,0.0004,120]
[354380767,1740468667822,-3000.0,0.0004,120]
[354380768,1740468667831,-324.39,0.0004,30]
[354380769,1740468667841,-1060.0,0.0004,5]
[354380770,1740468667851,-206.0,0.0004,2]
[354380772,1740468667860,-380.0,0.0004,3]
[354380773,1740468667869,-500.0,0.0004,60]
[354380775,1740468667878,-500.0,0.0004,60]
[354380777,1740468667887,-151.0,0.0004,14]
[354380779,1740468667897,-297.746008,0.0004,14]
[354380781,1740468667906,-171.971388,0.0004,14]
[354380783,1740468667915,-171.971388,0.0004,14]
[354380786,1740468667932,-10000.0,0.0004,14]
[354380789,1740468667958,-10000.0,0.0004,14]
[354380791,1740468667976,-168.176832,0.0004,14]
[354380794,1740468667995,-162.56374109,0.0004,7]
[354380797,1740468668009,-25060.67,0.0004,120]
[354380800,1740468668030,-150.0,0.0004,120]
[354380803,1740468668048,-150.0,0.0004,120]
[354380805,1740468668075,-10000.0,0.0004,120]
[354380808,1740468668097,-1144.99,0.000401,14]
[354380811,1740468668114,-2566.788,0.0004018,60]
[354380814,1740468668133,-1144.99,0.000402,14]
[354380816,1740468668148,-862.52543216,0.00040245,8]
[354380819,1740468668165,-43326.3265653,0.0004048,10]
[354380821,1740468668181,-61708.73704224,0.000405,120]
[354380824,1740468668197,-1824.126,0.00040728,59]
[354380827,1740468668213,-19082.39,0.00040818,117]
[354380829,1740468668228,-151.0,0.00040822,120]
[354380832,1740468668244,-152.2841075,0.00040865,4]
[354380835,1740468668263,-987.57,0.00040959,2]
[354380837,1740468668280,-987.57,0.00040959,2]
[354380840,1740468668296,-1973.67,0.00040959,2]
[354380842,1740468668312,-987.57,0.00040959,2]
[354380845,1740468668329,-987.57,0.00040959,2]
[354380848,1740468668344,-1470.38,0.00040959,2]
[354380850,1740468668358,-987.57,0.00040959,2]
[354380853,1740468668373,-1974.49,0.00040959,2]
[354380855,1740468668389,-1559.16,0.00040959,2]
[354380858,1740468668405,-1551.99,0.00040959,2]
[354380861,1740468668420,-884.39,0.00040959,2]
[354380863,1740468668437,-440.37,0.00040959,2]
[354380866,1740468668453,-100000.0,0.00041,41]
[354380869,1740468668468,-10000.0,0.00041,30]
[354380871,1740468668484,-200.0,0.00041,120]
[354380874,1740468668500,-99900.0,0.00041,120]
[354380877,1740468668519,-4238.59902504,0.00041,120]
[354380879,1740468668534,-58469.28285212,0.00041,120]
[354380881,1740468668549,-20000.0,0.00041,60]
[354380884,1740468668566,-151.0,0.00041,14]
[354380886,1740468668583,-739.392273,0.00041,14]
[354380889,1740468668599,-739.392273,0.00041,14]
[354380891,1740468668615,-151.0,0.00041,14]
[354380894,1740468668630,-151.0,0.00041,14]
[354380897,1740468668647,-151.0,0.00041,14]
[354380899,1740468668663,-839.190663,0.00041,14]
[354380902,1740468668679,-839.190663,0.00041,14]
[354380904,1740468668695,-500.0,0.00041096,60]
[354380907,1740468668710,-500.0,0.00041096,60]
[354380910,1740468668726,-7067.0,0.0004111,120]
[354380912,1740468668741,-500.0,0.00041413,120]
[354380915,1740468668757,-12006.77895485,0.0004155,60]
[354380917,1740468668775,-862.52543216,0.00041624,9]
[354380920,1740468668790,-278.19,0.00041644,30]
[354380922,1740468668805,-278.19,0.00041644,30]
[354380925,1740468668823,-278.19,0.00041644,30]
[354380928,1740468668840,-278.19,0.00041644,30]
[354380930,1740468668855,-278.19,0.00041644,30]
[354380933,1740468668871,-278.19,0.00041644,30]
[354380936,1740468668886,-278.19,0.00041644,30]
[354380938,1740468668901,-278.19,0.00041644,30]
[354380941,1740468668918,-278.19,0.00041644,30]
[354380943,1740468668933,-278.19,0.00041644,30]
[354380945,1740468668950,-365.03,0.00041713,2]
[354380946,1740468668965,-987.7,0.00041781,30]
[354380947,1740468668981,-151.0,0.00041863,120]
[354380948,1740468668998,-526619.20217523,0.000419,120]
[354380949,1740468669015,-151.0,0.000419,14]
[354380950,1740468669033,-1552.46,0.00041918,30]
[354380951,1740468669049,-1548.74,0.00041918,30]
[354380952,1740468669067,-880.74,0.00041918,30]
[354380953,1740468669084,-440.51,0.00041918,30]
[354380954,1740468669100,-200.0,0.00042,120]
[354380955,1740468669117,-10000.0,0.00042,30]
[354380956,1740468669132,-8913.85595414,0.00042,2]
[354380957,1740468669147,-579.0,0.00042,2]
[354380958,1740468669162,-15064.0,0.00042,30]
[354380959,1740468669177,-40000.0,0.00042,120]
[354380960,1740468669194,-1097.11950399,0.00042,120]
[354380961,1740468669209,-210.04327657,0.00042,120]
[354380962,1740468669224,-1060.0,0.00042,30]
[354380963,1740468669240,-1060.0,0.00042,30]
[354380964,1740468669256,-739.392273,0.00042,14]
[354380965,1740468669415,-739.392273,0.00042,14]
[354380966,1740468669447,-151.0,0.00042,14]
[354380967,1740468669460,-151.0,0.00042,14]
[354380968,1740468669470,-839.190663,0.00042,14]
[354380969,1740468669480,-839.190663,0.00042,14]
[354380970,1740468669490,-1321.86558598,0.0004201,2]
[354380971,1740468669499,-500.0,0.00042192,60]
[354380972,1740468669508,-500.0,0.00042192,60]
[354380973,1740468669521,-151.0,0.00042466,120]
[354380974,1740468669530,-278.19,0.00042466,30]
[354380975,1740468669540,-278.19,0.00042466,30]
[354380976,1740468669550,-278.19,0.00042466,30]
[354380977,1740468669560,-278.19,0.00042466,30]
[354380979,1740468669570,-278.19,0.00042466,30]
[354380981,1740468669580,-278.19,0.00042466,30]
[354380983,1740468669590,-278.19,0.00042466,30]
[354380984,1740468669599,-278.19,0.00042466,30]
[354380985,1740468669608,-278.19,0.00042466,30]
[354380986,1740468669618,-278.19,0.00042466,30]
[354380987,1740468669628,-278.19,0.00042466,30]
[354380988,1740468669638,-281.52,0.00042466,30]
[354380989,1740468669648,-278.19,0.00042466,30]
[354380990,1740468669657,-278.19,0.00042466,30]
[354380991,1740468669667,-278.19,0.00042466,30]
[354380992,1740468669676,-151.0,0.000425,14]
[354380993,1740468669687,-150.0,0.00042658,20]
[354380995,1740468669697,-20675.2,0.00042727,117]
[354380997,1740468669708,-500.0,0.00042827,120]
[354380999,1740468669717,-440.51,0.00042877,30]
[354381001,1740468669727,-440.51,0.00042877,30]
[354381003,1740468669736,-151.0,0.00042904,120]
[354381005,1740468669746,-1000.0,0.00042999,120]
[354381007,1740468669755,-10000.0,0.00043,30]
[354381009,1740468669764,-2659.95220161,0.00043,120]
[354381011,1740468669776,-214.0,0.00043,7]
[354381013,1740468669785,-501.86797949,0.00043,120]
[354381015,1740468669794,-500.0,0.00043,120]
[354381017,1740468669804,-3000.0,0.00043,60]
[354381019,1740468669814,-5564.74466991,0.00043,120]
[354381021,1740468669823,-2011.90378699,0.00043,30]
[354381023,1740468669834,-15000.0,0.00043,120]
[354381025,1740468669843,-319.9335742,0.00043,120]
[354381027,1740468669853,-862.52543216,0.00043003,9]
[354381029,1740468669863,-188.37,0.00043014,120]
[354381031,1740468669872,-274.21,0.00043151,2]
[354381033,1740468669881,-500.0,0.00043288,60]
[354381035,1740468669890,-500.0,0.00043288,60]
[354381037,1740468669901,-1968.5,0.00043425,30]
[354381039,1740468669911,-5000.0,0.000435,30]
[354381040,1740468669923,-189607.42593975,0.000437,120]
[354381043,1740468669936,-288.2386563,0.000437,120]
[354381044,1740468669948,-152.0,0.00043712,5]
[354381046,1740468669958,-472.38070716,0.000438,30]
[354381048,1740468669968,-100000.0,0.0004387,120]
[354381050,1740468669978,-600.0,0.000439,16]
[354381052,1740468669987,-151.0,0.00043945,120]
[354381054,1740468669997,-155.43,0.00043945,120]
[354381056,1740468670006,-365.03,0.00043977,2]
[354381058,1740468670015,-200.0,0.00044,120]
[354381060,1740468670026,-11228.37205656,0.00044,30]
[354381062,1740468670036,-10000.0,0.00044,30]
[354381064,1740468670046,-515.526369,0.00044,57]
[354381066,1740468670055,-15817.46,0.000441,7]
[354381067,1740468670069,-1060.0,0.000441,30]
[354381068,1740468670079,-1060.0,0.000441,30]
[354381069,1740468670088,-500.0,0.00044242,120]